Cogmind - Beta 9.3 @@@ ROGUE MODE // 2019.12.30 @ 19:31:18 Player: Cipherpunk Result: Self-destructed Performance ------------- Evolutions (4) 2000 Regions Visited (7) 1400 Robots Destroyed (62) 310 Value Destroyed (1849) 1849 Prototype IDs (6) 120 Alien Tech Used (0) 0 Bonus (300) 300 TOTAL SCORE: 5979 Bonus ------- Aligned with FarCom 300 Cogmind --------- Core Integrity 9/850 Matter 50/300 Energy 95/100 System Corruption 9% Temperature Cool (0) Movement Core (50) Location -6/Factory Parts ------- > --- POWER (1) -------- (None) > --- PROPULSION (3) --- (None) > --- UTILITY (8) ------ (None) > --- WEAPON (3) ------- (None) > --- INVENTORY (4) ---- (None) Peak State ------------ > --- POWER ------------ Light Deuterium Engine > --- PROPULSION ------- Light Treads Advanced Treads Advanced Treads > --- UTILITY ---------- Medium Storage Unit Large Storage Unit Improved Core Analyzer Microactuators Improved Medium Armor Plating Improved Medium Armor Plating Improved Recalibrator Improved Integration Mediator > --- WEAPON ----------- Flak Cannon Rocket Array Spear > --- INVENTORY -------- Light Fission Core Light Fission Core Remote Force Field Relay Coupler [Swarmer] Relay Coupler [Grunt] Gatling Laser EM Pulse Cannon Guided Plasma Cannon Heavy Assault Rifle [Rating: 56] Favorites ----------- Power Light Nuclear Core Engine Improved Ion Engine Power Core Light Nuclear Core Propulsion Light Treads Treads Light Treads Leg Aluminum Leg Utility Medium Storage Unit Device Improved Heat Sink Storage Medium Storage Unit Processor Improved Melee Analysis Suite Hackware Hacking Suite Protection Light Armor Plating Weapon Light Cannon Energy Gun Heavy EM Pulse Gun Energy Cannon Guided Plasma Cannon Ballistic Gun Heavy Assault Rifle Ballistic Cannon Light Cannon Launcher Mini Grenade Launcher Slashing Weapon Katana Piercing Weapon Spear Special Melee Weapon Datajack Build | -11 -10 -10 -10 -9 -8 -7 -6 ------- Run | Scr Mat Min Exi Min Mat Fac Fac Slots Evolved 8 | . . . . . 4 2 2 Power . | . . . . . . . . Propulsion 1 | . . . . . 1 . . Utility 6 | . . . . . 2 2 2 Weapon 1 | . . . . . 1 . . Parts Attached 83 | . 12 2 3 2 34 18 12 Power 7 | . 2 1 . . 2 1 1 Engine 4 | . . . . . 2 1 1 Core 3 | . 2 1 . . . . . Reactor . | . . . . . . . . Propulsion 11 | . 3 1 . . 3 4 . Treads 10 | . 3 1 . . 2 4 . Leg 1 | . . . . . 1 . . Wheel . | . . . . . . . . Hover . | . . . . . . . . Flight . | . . . . . . . . Utility 30 | . 3 . 2 2 10 6 7 Device 12 | . . . 1 1 6 . 4 Storage 2 | . 1 . . . . . 1 Processor 3 | . . . . . . 1 2 Hackware 2 | . . . . . 2 . . Protection 11 | . 2 . 1 1 2 5 . Artifact . | . . . . . . . . Weapon 35 | . 4 . 1 . 19 7 4 Energy Gun 4 | . . . . . 3 1 . Energy Cannon 12 | . 1 . 1 . 5 3 2 Ballistic Gun 6 | . 1 . . . 3 2 . Ballistic Cannon 6 | . 1 . . . 5 . . Launcher 4 | . . . . . 2 1 1 Special Weapon . | . . . . . . . . Impact Weapon . | . . . . . . . . Slashing Weapon 1 | . . . . . 1 . . Piercing Weapon 1 | . . . . . . . 1 Special Melee Weapon 1 | . 1 . . . . . . Unidentified Prototypes 4 | . . . 2 1 . 1 . Parts Lost 31 | . 2 1 . . 11 3 14 Power 5 | . 1 . . . 2 . 2 Propulsion 7 | . . 1 . . 3 . 3 Utility 10 | . . . . . 2 3 5 Weapon 9 | . 1 . . . 4 . 4 Highest Loss Streak 12 | . 1 1 . . 9 3 12 Average Slot Usage (%) 88 | . 94 99 99 100 83 91 59 Engine 4 | . 2 . . . 5 7 3 Core 5 | . 9 13 14 14 2 . . Treads 21 | . 27 27 28 28 12 21 12 Device 5 | . . . . . 14 4 8 Storage 10 | . 14 14 14 14 9 7 5 Processor 1 | . . . . . . 3 5 Hackware 3 | . . . . . 2 9 . Protection 10 | . 10 14 13 14 6 12 8 Energy Gun 1 | . . . . . 3 . . Energy Cannon 4 | . 1 14 13 14 7 . 1 Ballistic Gun 6 | . 16 . . . 4 6 3 Ballistic Cannon 8 | . 9 14 14 14 7 7 4 Slashing Weapon 1 | . . . . . . 6 . Naked Turns 46 | . . . . . . . 46 Heaviest Build 66 | 10 21 22 29 29 39 45 66 Greatest Support 64 | 20 40 40 40 40 40 64 64 Greatest Overweight (x) 14 | . . . . . 2 1 14 Average Overweight (x) . | . . . . . . . . Largest Inventory Capacity 14 | . 8 8 8 8 8 8 14 Average Capacity 7 | . 7 8 8 8 8 8 8 Most Carried 9 | . 8 8 8 8 8 8 9 Average Carried 7 | . 6 7 7 7 7 7 6 Final Capacity 8 | 6 8 8 8 8 8 8 4 Final Carried 8 | 6 8 8 8 8 8 8 . Class Distribution -------------------- 59% | Mutant 28% | Scavenger-Mutant 4% | Scavenger-Skirmisher 3% | Tank Dominant Class ---------------- Mutant | -10/Materials Mutant | -10/Mines Mutant | -10/Exiles Mutant | -9/Mines Scavenger-Mutant | -8/Materials Scavenger-Mutant | -7/Factory Mutant | -6/Factory Resources | -11 -10 -10 -10 -9 -8 -7 -6 ----------- Run | Scr Mat Min Exi Min Mat Fac Fac Matter Collected 1401 | 163 381 54 . 64 260 476 3 Remotely . | . . . . . . . . Salvage Created 1827 | . 614 69 . 19 689 285 151 Parts 117 | . 37 10 . . 41 21 8 Haulers Intercepted 2 | . 2 . . . . . . Recyclers Shooed 4 | . 4 . . . . . . Parts Field Recycled . | . . . . . . . . Retrieved Matter . | . . . . . . . . Parts Self-Destructed . | . . . . . . . . Prevented . | . . . . . . . . Kills | -11 -10 -10 -10 -9 -8 -7 -6 ------- Run | Scr Mat Min Exi Min Mat Fac Fac Combat Hostiles Destroyed 46 | . 14 3 . 1 17 5 6 Melee 2 | . . . . . . 1 1 Guns 16 | . 11 . . . 4 1 . Cannons 18 | . 3 3 . 1 8 2 1 AOE 10 | . . . . . 5 1 4 Classes Destroyed 14 | . 5 1 . 1 5 2 . Worker 5 | . . . . . 4 1 . Builder 1 | . . . . . . 1 . Tunneler 3 | . . 1 . . . 2 . Hauler 2 | . 2 . . . . . . Recycler 1 | . 1 . . . . . . Operator 3 | . 1 . . . 2 . . Watcher 1 | . . . . . 1 . . Swarmer 14 | . 6 3 . . 5 . . Grunt 18 | . 8 . . . 7 . 3 Duelist 1 | . . . . . 1 . . Sentry 7 | . . . . . 3 3 1 Hunter 2 | . . . . . 1 1 . Programmer 3 | . . . . . . 1 2 Assembled 1 | . . . . 1 . . . Best Kill Streak 10 | . 3 3 . 1 10 4 4 Combat Bots Only 6 | . 3 3 . 1 6 1 4 Max Kills in Single Turn 3 | . 2 1 . 1 3 2 3 Gunslinging 1 | . 1 . . . . . . Exploded 3 | . . . . . 1 1 3 Melee 1 | . . . . . . 1 1 Uniques/NPCs Destroyed . | . . . . . . . . Combat | -11 -10 -10 -10 -9 -8 -7 -6 -------- Run | Scr Mat Min Exi Min Mat Fac Fac Damage Taken 4991 | . 744 87 . 12 1270 1169 1709 Core 1205 | . 72 . . . 222 70 841 Absorbed by Shields . | . . . . . . . . Core Remaining (%) 80 | 100 . . . 71 59 90 . Volleys Fired 159 | . 60 6 . 2 57 28 6 Largest 3 | . 2 2 . 1 3 3 1 Hottest 147 | . 95 95 . 120 143 147 120 Shots Fired 276 | . 120 12 . 2 92 44 6 Gun 137 | . 92 . . . 35 10 . Cannon 127 | . 28 12 . 2 48 34 3 Launcher 12 | . . . . . 9 . 3 Special . | . . . . . . . . Kinetic 195 | . 116 6 . . 38 34 1 Thermal 40 | . 4 6 . 2 21 5 2 Explosive 12 | . . . . . 9 . 3 Electromagnetic 29 | . . . . . 24 5 . Robot Hit Streak 15 | . 15 2 . 2 14 11 5 Robot Miss Streak 8 | . 5 2 . . 3 8 1 Penetration Max . | . . . . . . . . Secondary Targets 2 | . 2 . . . . . . Max Gunslinging Chain 1 | . 1 . . . . . . Shots Hit Robots 195 | . 77 6 . 1 58 44 9 Core Hits 128 | . 32 4 . 1 35 28 28 Critical Hits 1 | . 1 . . . . . . Critical Kills . | . . . . . . . . Critical Parts Destroyed 1 | . 1 . . . . . . Melee Attacks 34 | . . . . . 4 18 12 Impact . | . . . . . . . . Slashing 22 | . . . . . 4 18 . Piercing 12 | . . . . . . . 12 Sneak Attacks 5 | . . . . . . 5 . Combat Hostiles . | . . . . . . . . Follow-up Attacks . | . . . . . . . . Damage Inflicted 5442 | . 921 142 . 31 2118 1415 815 Guns 1166 | . 707 . . . 340 119 . Cannons 2089 | . 212 142 . 31 945 650 109 Explosions 1444 | . . . . . 826 62 556 Melee 723 | . . . . . . 584 139 Ramming 20 | . 2 . . . 7 . 11 Kinetic 1955 | . 865 39 . . 398 623 30 Thermal 1218 | . 54 103 . 31 781 170 79 Explosive 1296 | . . . . . 740 . 556 Electromagnetic 230 | . . . . . 192 38 . Impact . | . . . . . . . . Slashing 584 | . . . . . . 584 . Piercing 139 | . . . . . . . 139 Highest Corruption 11 | . . . . . . 11 9 Average Corruption 9 | . . . . . . 11 5 Corruption Purged . | . . . . . . . . Effects 30 | . . . . . . 25 5 Message Errors 6 | . . . . . . 4 2 Matter Fused 3 | . . . . . . 3 . Heat Flow Errors 7 | . . . . . . 5 2 Energy Discharges 2 | . . . . . . 2 . Parts Rejected 1 | . . . . . . 1 . Data Loss (minor) 2 | . . . . . . 1 1 Misfires 2 | . . . . . . 2 . Misdirections 3 | . . . . . . 3 . Targeting Errors 4 | . . . . . . 4 . Overload Shots . | . . . . . . . . Overflow Damage 275 | . 13 . . . 83 175 4 Projectiles 74 | . 13 . . . 57 . 4 Explosions 26 | . . . . . 26 . . Melee 175 | . . . . . . 175 . Knockbacks 6 | . . 1 . . 3 2 . Impact . | . . . . . . . . Kinetic 5 | . . 1 . . 2 2 . Secondary 1 | . . . . . 1 . . Self-Inflicted Damage 151 | . . . . . 146 . 5 Shots 5 | . . . . . 5 . . Rammed 7 | . 1 . . . 3 . 3 Targets Rammed 7 | . 1 . . . 3 . 3 Kicked . | . . . . . . . . Crushed . | . . . . . . . . Highest Temperature 530 | . 99 192 . 200 199 530 244 Average Temperature 85 | . 23 75 . 104 87 138 82 Received Heat Transfer 1304 | . 327 . . 20 333 204 420 Effects 8 | . . . . . . 8 . Shutdowns 1 | . . . . . . 1 . Energy Bleed 2 | . . . . . . 2 . Interference 3 | . . . . . . 3 . Matter Decay 1 | . . . . . . 1 . Short Circuit 1 | . . . . . . 1 . Siege Activations . | . . . . . . . . Robots Corrupted . | . . . . . . . . Combat Hostiles . | . . . . . . . . Parts Fried . | . . . . . . . . Impact Corruptions . | . . . . . . . . Robots Melted . | . . . . . . . . Combat Hostiles . | . . . . . . . . Parts Melted 5 | . . . . . 4 1 . Heat Transferred 2513 | . 111 222 . 80 1700 240 160 Parts Sabotaged . | . . . . . . . . Parts Stolen . | . . . . . . . . Parts Stripped . | . . . . . . . . Power Chain Reactions 2 | . . . . . 1 1 . Missiles Intercepted . | . . . . . . . . Alert | -11 -10 -10 -10 -9 -8 -7 -6 ------- Run | Scr Mat Min Exi Min Mat Fac Fac Peak Influence 311 | . 250 55 . 15 254 311 266 Average Influence 90 | . 85 4 . 12 128 85 123 Maximum Alert Level 1 | . 1 . . . 1 1 1 Low Security (%) 87 | . 92 100 . 100 72 91 87 Level 1 12 | . 7 . . . 27 8 12 Level 2 . | . . . . . . . . Level 3 . | . . . . . . . . Level 4 . | . . . . . . . . Level 5 . | . . . . . . . . High Security . | . . . . . . . . Max Security . | . . . . . . . . Squads Dispatched 16 | . 2 . . . 2 7 5 Investigation 1 | . 1 . . . . . . Extermination 2 | . . . . . . 2 . Reinforcement 6 | . 1 . . . 2 1 2 Assault 1 | . . . . . . 1 . Garrison 6 | . . . . . . 3 3 Intercept . | . . . . . . . . Construction Impeded 1 | . . . . . . 1 . Haulers Reinforced . | . . . . . . . . Stealth | -11 -10 -10 -10 -9 -8 -7 -6 --------- Run | Scr Mat Min Exi Min Mat Fac Fac Distress Signals 7 | . 1 . . . 5 . 1 Communications Jammed 66 | . . . . . 66 . . Distress Signals 66 | . . . . . 66 . . Times Spotted 115 | . 33 3 . 1 47 7 24 Peak Tracking Total 9 | . 5 3 . 2 9 2 9 Tactical Retreats 7 | . 3 . . . 3 . 1 Traps | -11 -10 -10 -10 -9 -8 -7 -6 ------- Run | Scr Mat Min Exi Min Mat Fac Fac Traps Triggered 3 | . 2 . . . . . 1 Indirectly . | . . . . . . . . Trap Hack Attempts 4 | . 4 . . . . . . Triggered . | . . . . . . . . Disarmed 1 | . 1 . . . . . . Reprogrammed 1 | . 1 . . . . . . Reused . | . . . . . . . . Traps Extracted . | . . . . . . . . Installed . | . . . . . . . . Triggered . | . . . . . . . . Exploded 1 | . . . . . . . 1 Machines | -11 -10 -10 -10 -9 -8 -7 -6 ---------- Run | Scr Mat Min Exi Min Mat Fac Fac Machines Disabled 4 | . . . . 1 1 1 1 Max in Single Turn 1 | . . . . 1 1 1 1 Garrison Access 1 | . . . . . . 1 . Machines Sabotaged . | . . . . . . . . Garrisons Compromised . | . . . . . . . . Overloaded Fab Kills . | . . . . . . . . Fab Network Shutdowns . | . . . . . . . . Hacking | -11 -10 -10 -10 -9 -8 -7 -6 --------- Run | Scr Mat Min Exi Min Mat Fac Fac Machines Accessed 15 | . 6 . 1 . 4 3 1 Terminals 10 | . 6 . . . 3 1 . Fabricators . | . . . . . . . . Repair Stations . | . . . . . . . . Recycling Units 2 | . . . . . . 1 1 Scanalyzers 1 | . . . . . 1 . . Garrison Access 1 | . . . . . . 1 . Total Hacks 45 | . 14 . 4 . 18 8 1 Successful 30 | . 9 . 4 . 12 4 1 Failed 15 | . 5 . . . 6 4 . Catastrophic 3 | . 1 . . . 1 1 . Database Lockouts . | . . . . . . . . Manual 27 | . 10 . 1 . 12 4 . Terminals 32 | . 14 . . . 14 4 . Fabricators . | . . . . . . . . Repair Stations . | . . . . . . . . Recycling Units 4 | . . . . . . 3 1 Scanalyzers 4 | . . . . . 4 . . Garrison Access 1 | . . . . . . 1 . Terminal Hacks 12 | . 4 . 4 . 4 . . Record 4 | . . . 4 . . . . Prototype ID Bank 1 | . 1 . . . . . . Terminal Index 1 | . . . . . 1 . . Repair Station Index 1 | . . . . . 1 . . Scanalyzer Index 1 | . . . . . 1 . . Unreport Threat 1 | . . . . . 1 . . Registered Components 1 | . 1 . . . . . . Zone Layout 2 | . 2 . . . . . . Fabricator Hacks . | . . . . . . . . Repair Station Hacks . | . . . . . . . . Recycling Unit Hacks 4 | . . . . . . 3 1 Report Inventory 1 | . . . . . . 1 . Retrieve Matter 1 | . . . . . . 1 . Retrieve Components 2 | . . . . . . 1 1 Scanalyzer 4 | . . . . . 4 . . Insert Component 2 | . . . . . 2 . . Analyze 2 | . . . . . 2 . . Garrison Access Hacks . | . . . . . . . . Unauthorized Hacks 25 | . 12 . . . 10 3 . Terminals 10 | . 5 . . . 4 1 . Track 3 | . 2 . . . 1 . . Assimilate 2 | . . . . . 2 . . Botnet 4 | . 2 . . . 1 1 . Disrupt 1 | . 1 . . . . . . Fabricators . | . . . . . . . . Repair Stations . | . . . . . . . . Recycling Units . | . . . . . . . . Scanalyzers . | . . . . . . . . Garrison Access . | . . . . . . . . Data Cores Recovered . | . . . . . . . . Used . | . . . . . . . . Hacking Detections 10 | . 5 . . . 3 2 . Full Trace Events 2 | . 2 . . . . . . Feedback Events . | . . . . . . . . Feedback Blocked . | . . . . . . . . Robot Schematics Acquired . | . . . . . . . . Robots Built . | . . . . . . . . Matter . | . . . . . . . . Time . | . . . . . . . . Total Robot Build Rating . | . . . . . . . . Part Schematics Acquired 1 | . . . . . 1 . . Parts Built . | . . . . . . . . Matter . | . . . . . . . . Time . | . . . . . . . . Total Part Build Rating . | . . . . . . . . Parts Repaired . | . . . . . . . . Time . | . . . . . . . . Parts Recycled . | . . . . . . . . Recycled Matter . | . . . . . . . . Retrieved Matter 3 | . . . . . . 3 . Retrieved Components 12 | . . . . . . 9 3 Parts Scanalyzed 1 | . . . . . 1 . . Part Schematics Acquired 1 | . . . . . 1 . . Parts Damaged . | . . . . . . . . Bothacking | -11 -10 -10 -10 -9 -8 -7 -6 ------------ Run | Scr Mat Min Exi Min Mat Fac Fac Used RIF Installer . | . . . . . . . . Robots Hacked . | . . . . . . . . Non-combat . | . . . . . . . . Combat . | . . . . . . . . Robot Hacks Applied . | . . . . . . . . Relay Couplers Released 3 | . . . . . . 3 . Machine Destruction 3 | . . . . . . 3 . Robots Rewired . | . . . . . . . . Allies Hacked . | . . . . . . . . Hacks Repelled . | . . . . . . . . Allies | -11 -10 -10 -10 -9 -8 -7 -6 -------- Run | Scr Mat Min Exi Min Mat Fac Fac Total Allies 2 | . . . . . 2 . . Largest Group 2 | . . . . . 2 1 . Highest-Rated Group 36 | . . . . . 36 26 . Highest-Rated Ally 26 | . . . . . 26 26 . Total Orders 5 | . . . . . 4 1 . GOTO 3 | . . . . . 2 1 . FOLLOW 2 | . . . . . 2 . . Ally Attacks . | . . . . . . . . Total Damage . | . . . . . . . . Kills . | . . . . . . . . Allies Corrupted . | . . . . . . . . Allies Melted . | . . . . . . . . Intel | -11 -10 -10 -10 -9 -8 -7 -6 ------- Run | Scr Mat Min Exi Min Mat Fac Fac Robot Analysis Total . | . . . . . . . . Derelict Logs Recovered 1 | . . 1 . . . . . Drone Launches . | . . . . . . . . Drone Recoveries . | . . . . . . . . Exploration | -11 -10 -10 -10 -9 -8 -7 -6 ------------- Run | Scr Mat Min Exi Min Mat Fac Fac Turns Passed 5239 | . 1263 472 417 100 1157 1349 481 Spaces Moved 2825 | 1 637 273 255 57 517 743 342 Core 195 | . . . . . 4 . 191 Treads 2586 | . 630 273 255 57 477 743 151 Legs 44 | 1 7 . . . 36 . . Wheels . | . . . . . . . . Hover . | . . . . . . . . Flight . | . . . . . . . . Fastest Speed 50 | 120 120 160 160 160 150 150 50 Average Speed 153 | 120 159 160 160 160 166 153 108 Slowest Speed 750 | 120 160 160 160 160 180 180 750 Overloaded Moves . | . . . . . . . . Propulsion Burnouts . | . . . . . . . . Robots Hopped . | . . . . . . . . Cave-ins Triggered 1 | . . . . . . 1 . Exploration Rate (%) 40 | 1 95 65 62 19 46 25 11 Regions Visited 7 Branch Regions 3 Pre-discovered Areas . | . . . . . . . . Known Exits Taken . | . . . . . . . . Unknown Exits Taken 7 | 1 1 1 1 1 1 1 . Scrap Searched . | . . . . . . . . Spaces Dug 9 | . . . . . 4 3 2 Terrain Destroyed 122 | . . . . . 82 4 36 Melee 9 | . . . . . 4 3 2 Projectile 2 | . . . . . 2 . . AOE 111 | . . . . . 76 1 34 Actions | -11 -10 -10 -10 -9 -8 -7 -6 --------- Run | Scr Mat Min Exi Min Mat Fac Fac Total 3424 | . 775 298 266 64 713 882 426 Wait 231 | . 37 14 . . 80 54 46 Move 2818 | . 636 272 254 56 516 742 342 Hop . | . . . . . . . . Pick Up 37 | . 10 3 3 2 9 10 . Fast Attach 31 | . 5 . 3 . 12 3 8 Attach 19 | . 2 2 . . 8 6 1 Detach 8 | . 1 . . . 3 2 2 Swap 33 | . 5 . . 2 14 9 3 Drop 43 | . 14 1 6 2 7 10 3 Fire 159 | . 60 6 . 2 57 28 6 Melee 34 | . . . . . 4 18 12 Ram 3 | . . . . . . . 3 Kick . | . . . . . . . . Crush 4 | . 1 . . . 3 . . Escape Stasis . | . . . . . . . . Rewire . | . . . . . . . . Trap 4 | . 4 . . . . . . Miscellaneous . | . . . . . . . . Route ------- -11/Scrapyard -10/Materials (discovered 5 exits: [*Mat x3] / [*Min x2]) -10/Mines (discovered 3 exits: [*Mat x2] / *Exi) -10/Exiles (discovered 2 exits: [*Min x2]) -9/Mines -8/Materials -7/Factory -6/Factory History --------- Turn | Location | Event 1 | -11/Scrapyard | Discovered new exit (range 0) 1 | -11/Scrapyard | Entered Materials 302 | -10/Materials | Build established: Mutant 351 | -10/Materials | Discovered new exit (range 14) 563 | -10/Materials | Discovered new exit (range 15) 709 | -10/Materials | Discovered new exit (range 14) 898 | -10/Materials | Discovered new exit (range 4) 1130 | -10/Materials | Discovered new exit (range 16) 1264 | -10/Materials | Entered Mines 1308 | -10/Mines | Discovered new exit (range 8) 1479 | -10/Mines | Learned Materials trap positions 1524 | -10/Mines | Discovered new exit (range 15) 1730 | -10/Mines | Deemed a non-threat by the Exiles lab entrance 1730 | -10/Mines | Discovered new exit (range 5) 1736 | -10/Mines | Entered Exiles 1760 | -10/Exiles | Discovered new exit (range 15) 1789 | -10/Exiles | Met 8R-AWN 1816 | -10/Exiles | Met EX-HEX 1871 | -10/Exiles | Met EX-BIN 1893 | -10/Exiles | Aligned with FarCom system 1895 | -10/Exiles | Given EX-Vault access code 1968 | -10/Exiles | Opened EX-Vault 1977 | -10/Exiles | Found Prototype Device 1977 | -10/Exiles | Identified PSU Rigger 1980 | -10/Exiles | Found Prototype Energy Cannon 1980 | -10/Exiles | Identified Gui. Plasma Cannon 2029 | -10/Exiles | Warned to stay clear of 0b10 Research branches 2041 | -10/Exiles | Exiles lab attacked by MAIN.C 2141 | -10/Exiles | Discovered new exit (range 10) 2153 | -10/Exiles | Left Exiles lab with Gui. Plasma Cannon 2153 | -10/Exiles | Entered Mines 2154 | -9/Mines | Assembled infested the area 2159 | -9/Mines | Assisted by a Guerilla fighting off Assembled 2220 | -9/Mines | Discovered new exit (range 11) 2221 | -9/Mines | Found a damaged Exp. Sensor Array with a note attached 2228 | -9/Mines | Found Prototype Device 2237 | -9/Mines | Identified Exp. Sensor Array 2253 | -9/Mines | Entered Materials 2253 | -8/Materials | Evolved 4 slots: Propulsion x1, Utility x2, Weapon x1 2254 | -8/Materials | Loaded intel: 22 trap records 2653 | -8/Materials | Lost 9 parts (2p2n2u3w) 2743 | -8/Materials | Discovered new exit (range 8) 3410 | -8/Materials | Entered Factory 3410 | -7/Factory | Accompanied by 1 ally 3410 | -7/Factory | Evolved 2 slots: Utility x2 3642 | -7/Factory | Build established: Scavenger-Mutant 4242 | -7/Factory | Found Prototype Launcher 4243 | -7/Factory | Identified Rocket Array 4294 | -7/Factory | Crushed by falling debris 4294 | -7/Factory | System corruption reached 10% 4325 | -7/Factory | Lost 3 parts (3u) 4674 | -7/Factory | Discovered new exit (range 8) 4759 | -7/Factory | Entered another Factory area 4759 | -6/Factory | Evolved 2 slots: Utility x2 5111 | -6/Factory | Released all parts (3) 5112 | -6/Factory | Core integrity fell below 50% 5132 | -6/Factory | Build established: Mutant 5142 | -6/Factory | Lost 12 parts (1p3n5u3w) 5211 | -6/Factory | Core integrity fell below 20% 5240 | -6/Factory | Self-destructed Last Messages --------------- F011. 05170_ Acquired Angular Momentum Engine. 05187_ Dropped Rigged Lgt. Fission Core. 05187_ C-30 ARC bursts open, deploying its payload. 05187_ P-60 Hacker unfolds itself. 05193_ YJT3QBS,DX1K24WGUCIMLX:|/VSLOU 05196_ P-60 Hacker destroyed. 05197_ Gui. Plasma Cannon destroyed. 05204_ Angular Momentum Engine destroyed. 05212_ System corrupted: Heat flow error (+281). 05224_ Slammed into K-01 Serf. 05225_ K-01 Serf cleans the Terminal. 05227_ W-25 Informer sends out distress signal. 05228_ K-01 Serf cleans the Terminal. 05239_ Discarded Adv. Terrain Scan Processor. 05239_ Dropped Relay Coupler [Swarmer]. 05240_ Dropped Hvy. Assault Rifle. Map ----- +----------------------------------------------------+ | ??????????????????????#"" # " " " #????? | | ????????????????????????# + " " " #????? | | ????????????????????????# # " " " #????? | | ????????????????????????# ### " " " #????? | | ????????????????????????# ## #?# " " " ?????? | | ???????????????????????## ## #?# ??????? | | ???????????????????????# ## #?# ?????? | | ???????????????????????# ##### #?# ?????? | | ???????????????????????# #???# #?# ?????? | | ???????????????????????# s#???#g#?? #????? | | ???????????????????????# #???#w#??###?#####????? | | ???????????????????????# s#???# #???????????????? | | ?????????####+########## #???? ????????????????? | | ?????????# s#???? ????????????????? | | ?????????# #???? ????????????????? | | ?????????# #???? ????????????????? | | ?????????# #????g????????????????? | | ?????????# #???? #???????????????? | | ?????????# """"""" ##### #???????????????? | | ??????????????""""" #### ???????????? | | ??????????????""""" ??????????? | | ?????????+ """"""" g ??????????? | | ?????????# g ??????????? | | ?????????# ??????????? | | ?????????# #######+#############???????????? | | ?????????####+###???# @ #???????????????????? | | ????????????????????# [ #???????????????????? | | ????????????????????# #???????????????????? | | ????????????????????# #???????????????????? | | ????????????????????# #???????????????????? | | ????????????????????# #???????????????????? | | ????????????????????# #???????????????????? | | ????????????????????# #???????????????????? | | ????????????????????# #???????????????????? | | ????????????????????##########???????????????????? | | ?????????????????????????????????????????????????? | | ?????????????????????????????????????????????????? | | ?????????????????????????????????????????????????? | | ?????????????????????????????????????????????????? | | ?????????????????????????????????????????????????? | | ?????????????????????????????????????????????????? | | ?????????????????????????????????????????????????? | | ?????????????????????????????????????????????????? | | ?????????????????????????????????????????????????? | | ?????????????????????????????????????????????????? | | ?????????????????????????????????????????????????? | | ?????????????????????????????????????????????????? | | ?????????????????????????????????????????????????? | | ?????????????????????????????????????????????????? | | ?????????????????????????????????????????????????? | +----------------------------------------------------+ Best States ------------- Heat Dissipation 48 Coolant Potential 50 Energy Generation 18 Energy Capacity 300 Matter Stores 300 Matter Capacity 300 Sight Range 16 Robot Scan Range 30 Terrain Scan Density 210 Jamming Range 8 Armor Coverage 450 Core Shielding 20 Melee Speed Boost 20 Evasion (%) 50 Melee Accuracy 6 Core Analysis 8 Recoil Reduction 3 Offensive Hacking 10 Defensive Hacking 10 Item Schematics ----------------- Exp. Sensor Array | -8/Materials | Scanalyzed Robot Schematics ------------------ None Fabricated ------------ Nothing Alien Tech Used ----------------- None Achievements -------------- None Challenges ------------ None Game ------ Seed AerolevUtilityMachine Manual? 0 Play Time 01:09:48 Cumulative 73.7 hours Start 2019.12.29 @ 22:03:08 End 2019.12.30 @ 19:31:18 Sessions 5 Manual Loads 0 Difficulty Rogue Special Mode None Game No. 71 Rogue 71 Adventurer 0 Explorer 0 Win Type - Total 0 Types 0/0/0/0/0/0/0 Lore% 45 Gallery% 49 Achievement% 37 Wizard Run 0 Options --------- ASCII 0 Keyboard 1 Movement Numpad Keybinds 0 Fullscreen 2 Font 18/SmallcapsGlow Map View 76x50 Tactical HUD 1 Map Filters NONE Filters NONE Steam 1 RUN: f36398e3-e801-4f49-b2ca-5f91993f2efd